[Event "Late-Titled-Tuesday-Blitz-September-12-2023"]
[Site "Chess.com"]
[Date "2023.09.12"]
[Round "8"]
[White "diamonds13"]
[Black "MikeSailer"]
[Result "0-1"]
[WhiteElo "2332"]
[BlackElo "2191"]
[TimeControl "180+1"]
[EndTime "15:22:43 PDT"]
[Termination "MikeSailer won by resignation"]

1. d4 {[%clk 0:02:49.1]} 1... d5 {[%clk 0:02:56.5]} 2. c4 {[%clk 0:02:46.8]}
2... Bf5 {[%clk 0:02:53.9]} 3. cxd5 {[%clk 0:02:45.9]} 3... Bxb1 {[%clk
0:02:53]} 4. Rxb1 {[%clk 0:02:46.2]} 4... Qxd5 {[%clk 0:02:52.3]} 5. b3 {[%clk
0:02:42.9]} 5... Nc6 {[%clk 0:02:49.3]} 6. e3 {[%clk 0:02:43]} 6... e5 {[%clk
0:02:47.5]} 7. Bc4 {[%clk 0:02:42.7]} 7... Qxg2 {[%clk 0:02:40.9]} 8. Qf3 {[%clk
0:02:30.7]} 8... Bb4+ {[%clk 0:02:32.1]} 9. Ke2 {[%clk 0:02:27]} 9... Qxf3+
{[%clk 0:02:25]} 10. Nxf3 {[%clk 0:02:27]} 10... exd4 {[%clk 0:02:12.9]} 11.
exd4 {[%clk 0:02:26.8]} 11... O-O-O {[%clk 0:01:56.9]} 12. Be3 {[%clk
0:02:23.9]} 12... Nh6 {[%clk 0:01:30.3]} 13. Rhg1 {[%clk 0:02:15.2]} 13... Nf5
{[%clk 0:01:25.8]} 14. d5 {[%clk 0:02:11.1]} 14... Nxe3 {[%clk 0:01:10.7]} 15.
dxc6 {[%clk 0:02:06]} 15... Nxc4 {[%clk 0:01:06.1]} 16. bxc4 {[%clk 0:02:05.6]}
16... Bc3 {[%clk 0:00:45.9]} 17. Rxb7 {[%clk 0:01:57.1]} 17... Rhe8+ {[%clk
0:00:44]} 18. Kf1 {[%clk 0:01:57.1]} 18... Rd1+ {[%clk 0:00:37.8]} 19. Kg2
{[%clk 0:01:57.1]} 19... Rxg1+ {[%clk 0:00:37.6]} 20. Nxg1 {[%clk 0:01:55.9]}
20... Bd4 {[%clk 0:00:33.3]} 21. Nf3 {[%clk 0:01:41.2]} 21... Bb6 {[%clk
0:00:27.3]} 22. a4 {[%clk 0:01:41.3]} 22... Re6 {[%clk 0:00:25.5]} 23. a5 {[%clk
0:01:41.1]} 23... Rxc6 {[%clk 0:00:26.4]} 24. axb6 {[%clk 0:01:39.8]} 24... Kxb7
{[%clk 0:00:26.2]} 25. Ne5 {[%clk 0:01:36.3]} 25... Rxb6 {[%clk 0:00:23.7]} 26.
Nxf7 {[%clk 0:01:32.3]} 26... Rg6+ {[%clk 0:00:24.1]} 27. Kf1 {[%clk 0:01:31.3]}
27... a5 {[%clk 0:00:23]} 28. Ne5 {[%clk 0:01:31.4]} 28... Re6 {[%clk
0:00:21.5]} 29. Nd3 {[%clk 0:01:30.3]} 29... Kc6 {[%clk 0:00:21.1]} 30. Nb2
{[%clk 0:01:27.7]} 30... Kc5 {[%clk 0:00:20.2]} 31. f3 {[%clk 0:01:26]} 31...
Kb4 {[%clk 0:00:20.2]} 32. c5 {[%clk 0:01:23.6]} 32... Kb3 {[%clk 0:00:19.4]}
33. Nd3 {[%clk 0:01:23.8]} 33... a4 {[%clk 0:00:18.9]} 34. f4 {[%clk 0:01:20.6]}
34... a3 {[%clk 0:00:18.8]} 35. f5 {[%clk 0:01:18.1]} 35... Rh6 {[%clk
0:00:19.6]} 36. Kg2 {[%clk 0:01:15]} 36... Kc3 {[%clk 0:00:17.6]} 37. Nc1 {[%clk
0:01:14.7]} 37... Kb2 {[%clk 0:00:17.2]} 38. Nd3+ {[%clk 0:01:14.8]} 38... Kc2
{[%clk 0:00:16.3]} 39. Nb4+ {[%clk 0:01:14.6]} 39... Kb3 {[%clk 0:00:17.2]} 40.
Nd3 {[%clk 0:01:14.4]} 40... a2 {[%clk 0:00:18]} 41. Nc1+ {[%clk 0:01:14.5]}
41... Kb2 {[%clk 0:00:18.9]} 42. Nxa2 {[%clk 0:01:15.2]} 42... Kxa2 {[%clk
0:00:19.8]} 43. Kg3 {[%clk 0:01:15.2]} 43... Rc6 {[%clk 0:00:19.2]} 44. f6
{[%clk 0:01:12.8]} 44... gxf6 {[%clk 0:00:19.6]} 45. Kf4 {[%clk 0:01:12.9]}
45... Rxc5 {[%clk 0:00:20.5]} 0-1

[Event "Late-Titled-Tuesday-Blitz-September-12-2023"]
[Site "Chess.com"]
[Date "2023.09.12"]
[Round "8"]
[White "chess94cu"]
[Black "GMKrikor"]
[Result "0-1"]
[WhiteElo "2684"]
[BlackElo "2877"]
[TimeControl "180+1"]
[EndTime "15:22:44 PDT"]
[Termination "GMKrikor won by resignation"]

1. e4 {[%clk 0:02:55.9]} 1... e6 {[%clk 0:02:59.7]} 2. d4 {[%clk 0:02:55.5]}
2... d5 {[%clk 0:03:00.3]} 3. Nd2 {[%clk 0:02:56.3]} 3... c5 {[%clk 0:02:59.7]}
4. exd5 {[%clk 0:02:55.4]} 4... Qxd5 {[%clk 0:02:59.6]} 5. dxc5 {[%clk 0:02:56]}
5... Qxc5 {[%clk 0:02:59.6]} 6. Ngf3 {[%clk 0:02:56.5]} 6... Nf6 {[%clk
0:02:59.4]} 7. Bd3 {[%clk 0:02:57.1]} 7... Nbd7 {[%clk 0:02:59.6]} 8. Qe2 {[%clk
0:02:54.8]} 8... Qc7 {[%clk 0:02:59.5]} 9. c3 {[%clk 0:02:51.5]} 9... b6 {[%clk
0:02:54.8]} 10. O-O {[%clk 0:02:47.8]} 10... Bb7 {[%clk 0:02:54.7]} 11. Re1
{[%clk 0:02:44.4]} 11... Be7 {[%clk 0:02:51.8]} 12. Nc4 {[%clk 0:02:45]} 12...
O-O {[%clk 0:02:45.9]} 13. Nce5 {[%clk 0:02:45.6]} 13... Nxe5 {[%clk 0:02:40]}
14. Nxe5 {[%clk 0:02:46.5]} 14... Rad8 {[%clk 0:02:39.1]} 15. Bf4 {[%clk
0:02:44.9]} 15... Bd6 {[%clk 0:02:38.8]} 16. Rad1 {[%clk 0:02:41.1]} 16... h6
{[%clk 0:02:25.8]} 17. h3 {[%clk 0:02:38]} 17... Rfe8 {[%clk 0:02:17.8]} 18. Bb5
{[%clk 0:02:35.1]} 18... Rf8 {[%clk 0:02:13]} 19. Rd2 {[%clk 0:01:53.1]} 19...
Ne4 {[%clk 0:02:03.2]} 20. Rxd6 {[%clk 0:01:28.2]} 20... Qxd6 {[%clk 0:01:49.9]}
21. Ng6 {[%clk 0:01:24.6]} 21... e5 {[%clk 0:01:25.6]} 22. Nxe5 {[%clk
0:01:23.7]} 22... Qf6 {[%clk 0:01:12.6]} 23. Qg4 {[%clk 0:00:54.8]} 23... h5
{[%clk 0:01:00.9]} 24. Qf3 {[%clk 0:00:20]} 24... Nxc3 {[%clk 0:00:50.9]} 25.
Qxc3 {[%clk 0:00:16.8]} 25... Qxf4 {[%clk 0:00:50.6]} 26. Qc7 {[%clk 0:00:14.5]}
26... Rd2 {[%clk 0:00:31.5]} 27. Nd3 {[%clk 0:00:13.5]} 27... Qxc7 {[%clk
0:00:31]} 0-1

[Event "Late-Titled-Tuesday-Blitz-September-12-2023"]
[Site "Chess.com"]
[Date "2023.09.12"]
[Round "8"]
[White "newyorkmouse"]
[Black "picturesquecheck"]
[Result "1-0"]
[WhiteElo "2469"]
[BlackElo "2338"]
[TimeControl "180+1"]
[EndTime "15:22:47 PDT"]
[Termination "newyorkmouse won by resignation"]

1. b3 {[%clk 0:02:41.5]} 1... Nf6 {[%clk 0:02:58.2]} 2. Bb2 {[%clk 0:02:35.1]}
2... g6 {[%clk 0:02:59.1]} 3. g3 {[%clk 0:02:33.4]} 3... Bg7 {[%clk 0:02:59.2]}
4. Bg2 {[%clk 0:02:34.3]} 4... O-O {[%clk 0:02:59.6]} 5. Nf3 {[%clk 0:02:27.6]}
5... d6 {[%clk 0:02:58.3]} 6. d4 {[%clk 0:02:26.5]} 6... Nc6 {[%clk 0:02:54.7]}
7. c4 {[%clk 0:02:23.4]} 7... e5 {[%clk 0:02:52.8]} 8. d5 {[%clk 0:02:21.9]}
8... Ne7 {[%clk 0:02:51.7]} 9. O-O {[%clk 0:02:21.9]} 9... a5 {[%clk 0:02:50.4]}
10. a3 {[%clk 0:02:20.8]} 10... Nd7 {[%clk 0:02:50.6]} 11. e4 {[%clk 0:02:20.3]}
11... h6 {[%clk 0:02:49.2]} 12. Re1 {[%clk 0:02:19.9]} 12... f5 {[%clk
0:02:48.4]} 13. Nbd2 {[%clk 0:01:55]} 13... f4 {[%clk 0:02:47.2]} 14. b4 {[%clk
0:01:54]} 14... g5 {[%clk 0:02:42.8]} 15. c5 {[%clk 0:01:54.1]} 15... Ng6 {[%clk
0:02:35.3]} 16. Nc4 {[%clk 0:01:50.4]} 16... Qe7 {[%clk 0:02:18]} 17. cxd6
{[%clk 0:01:37]} 17... cxd6 {[%clk 0:02:13.8]} 18. bxa5 {[%clk 0:01:36]} 18...
Qf6 {[%clk 0:02:00.2]} 19. a4 {[%clk 0:01:19.2]} 19... g4 {[%clk 0:01:58.6]} 20.
Nfd2 {[%clk 0:01:17.7]} 20... Nc5 {[%clk 0:01:51.2]} 21. Nb3 {[%clk 0:01:09.5]}
21... Na6 {[%clk 0:01:37.4]} 22. Ba3 {[%clk 0:01:06.2]} 22... Rd8 {[%clk
0:01:24.8]} 23. Rc1 {[%clk 0:00:53.7]} 23... Bf8 {[%clk 0:01:23.3]} 24. Nb6
{[%clk 0:00:51.2]} 24... Rb8 {[%clk 0:01:22]} 25. Nxc8 {[%clk 0:00:50.4]} 25...
Rbxc8 {[%clk 0:01:19.7]} 26. Qxg4 {[%clk 0:00:51]} 26... Rxc1 {[%clk 0:01:14.4]}
27. Rxc1 {[%clk 0:00:51.9]} 27... Kh7 {[%clk 0:01:13]} 28. Bf1 {[%clk
0:00:47.8]} 28... Be7 {[%clk 0:00:58.4]} 29. Bxa6 {[%clk 0:00:43.8]} 29... bxa6
{[%clk 0:00:59.3]} 30. Rc7 {[%clk 0:00:44.3]} 30... Rf8 {[%clk 0:00:59.3]} 31.
Qe6 {[%clk 0:00:40.6]} 31... Qg5 {[%clk 0:00:41.1]} 32. Bxd6 {[%clk 0:00:28]}
32... fxg3 {[%clk 0:00:39.7]} 33. hxg3 {[%clk 0:00:24.4]} 33... Rf6 {[%clk
0:00:22.5]} 34. Bxe7 {[%clk 0:00:24.6]} 34... Rxe6 {[%clk 0:00:21.6]} 35. Bxg5+
{[%clk 0:00:24.6]} 1-0

[Event "Late-Titled-Tuesday-Blitz-September-12-2023"]
[Site "Chess.com"]
[Date "2023.09.12"]
[Round "8"]
[White "talaicito"]
[Black "MBA_CHESS_2021"]
[Result "0-1"]
[WhiteElo "2189"]
[BlackElo "2218"]
[TimeControl "180+1"]
[EndTime "15:22:48 PDT"]
[Termination "MBA_CHESS_2021 won on time"]

1. d4 {[%clk 0:03:00.9]} 1... d5 {[%clk 0:02:59.8]} 2. Nc3 {[%clk 0:02:59.8]}
2... Nf6 {[%clk 0:02:58.9]} 3. Bf4 {[%clk 0:03:00.4]} 3... Bf5 {[%clk 0:02:55]}
4. e3 {[%clk 0:03:00.7]} 4... c6 {[%clk 0:02:54.6]} 5. Nf3 {[%clk 0:03:00.1]}
5... e6 {[%clk 0:02:54.5]} 6. Ne5 {[%clk 0:03:00]} 6... Nbd7 {[%clk 0:02:54.3]}
7. g4 {[%clk 0:03:00.2]} 7... Nxe5 {[%clk 0:02:40.4]} 8. gxf5 {[%clk 0:03:00]}
8... Nc4 {[%clk 0:02:25.1]} 9. Bxc4 {[%clk 0:02:57.4]} 9... dxc4 {[%clk
0:02:24.3]} 10. fxe6 {[%clk 0:02:55.8]} 10... fxe6 {[%clk 0:02:24.5]} 11. Qe2
{[%clk 0:02:52]} 11... b5 {[%clk 0:02:24]} 12. O-O-O {[%clk 0:02:49.6]} 12...
Qa5 {[%clk 0:02:19.5]} 13. Kb1 {[%clk 0:02:36.3]} 13... O-O-O {[%clk 0:02:08.4]}
14. f3 {[%clk 0:02:24.3]} 14... Be7 {[%clk 0:01:58.6]} 15. Rhg1 {[%clk
0:01:58.5]} 15... g6 {[%clk 0:01:55.5]} 16. Ka1 {[%clk 0:01:56.4]} 16... Kb7
{[%clk 0:01:53.1]} 17. e4 {[%clk 0:01:41.5]} 17... Rhf8 {[%clk 0:01:47.4]} 18.
Bh6 {[%clk 0:01:36.6]} 18... Rf7 {[%clk 0:01:46.1]} 19. Bg5 {[%clk 0:01:35.3]}
19... Rdf8 {[%clk 0:01:29.3]} 20. Rgf1 {[%clk 0:00:30.4]} 20... Nh5 {[%clk
0:01:19.3]} 21. Bh6 {[%clk 0:00:28.8]} 21... Rc8 {[%clk 0:01:00.4]} 22. f4
{[%clk 0:00:28.1]} 22... Bb4 {[%clk 0:00:58.3]} 23. Nb1 {[%clk 0:00:26.8]} 23...
c3 {[%clk 0:00:57.4]} 24. b3 {[%clk 0:00:23.5]} 24... Ba3 {[%clk 0:00:57]} 25.
Nd2 {[%clk 0:00:15.4]} 25... cxd2 {[%clk 0:00:53.6]} 26. Qxd2 {[%clk 0:00:15.2]}
26... Bb4 {[%clk 0:00:53.6]} 27. Qc1 {[%clk 0:00:13.1]} 27... Bc3+ {[%clk
0:00:52.2]} 28. Kb1 {[%clk 0:00:12.9]} 28... Rd8 {[%clk 0:00:51.9]} 29. d5
{[%clk 0:00:09.1]} 29... exd5 {[%clk 0:00:50.1]} 30. exd5 {[%clk 0:00:08.9]}
30... cxd5 {[%clk 0:00:50.2]} 31. Rf3 {[%clk 0:00:05.9]} 31... b4 {[%clk
0:00:49.1]} 32. Rfd3 {[%clk 0:00:05.6]} 32... Rfd7 {[%clk 0:00:48.6]} 33. Bg5
{[%clk 0:00:05.1]} 33... Rc8 {[%clk 0:00:48.6]} 34. f5 {[%clk 0:00:01.2]} 34...
gxf5 {[%clk 0:00:48]} 35. Qe3 {[%clk 0:00:01.2]} 35... Qa3 {[%clk 0:00:46.8]}
0-1

[Event "Late-Titled-Tuesday-Blitz-September-12-2023"]
[Site "Chess.com"]
[Date "2023.09.12"]
[Round "8"]
[White "karinachess1"]
[Black "only_strong_moves"]
[Result "0-1"]
[WhiteElo "2606"]
[BlackElo "2510"]
[TimeControl "180+1"]
[EndTime "15:22:58 PDT"]
[Termination "only_strong_moves won on time"]

1. d4 {[%clk 0:03:00.9]} 1... Nf6 {[%clk 0:02:59.5]} 2. c4 {[%clk 0:03:00.9]}
2... e6 {[%clk 0:03:00]} 3. Nc3 {[%clk 0:03:00.7]} 3... Bb4 {[%clk 0:03:00.2]}
4. Qc2 {[%clk 0:03:00.5]} 4... d5 {[%clk 0:02:59.5]} 5. a3 {[%clk 0:02:55.5]}
5... Bxc3+ {[%clk 0:02:58.9]} 6. Qxc3 {[%clk 0:02:56.4]} 6... O-O {[%clk
0:02:56.5]} 7. Nf3 {[%clk 0:02:49.2]} 7... dxc4 {[%clk 0:02:52.7]} 8. e3 {[%clk
0:02:34.5]} 8... b5 {[%clk 0:02:52.4]} 9. a4 {[%clk 0:02:22.1]} 9... c6 {[%clk
0:02:49.4]} 10. Qc2 {[%clk 0:02:14.6]} 10... Na6 {[%clk 0:02:47]} 11. Bd2 {[%clk
0:02:14.2]} 11... Nd5 {[%clk 0:02:46.2]} 12. e4 {[%clk 0:02:03]} 12... Ndb4
{[%clk 0:02:42.3]} 13. Qb1 {[%clk 0:01:57.7]} 13... Rb8 {[%clk 0:02:30.2]} 14.
Be2 {[%clk 0:01:52.3]} 14... Nd3+ {[%clk 0:02:28.6]} 15. Bxd3 {[%clk 0:01:52.4]}
15... cxd3 {[%clk 0:02:29.5]} 16. Qxd3 {[%clk 0:01:47.7]} 16... bxa4 {[%clk
0:02:29.7]} 17. Rxa4 {[%clk 0:01:35.4]} 17... Nc5 {[%clk 0:02:29.3]} 18. Qc2
{[%clk 0:01:30.7]} 18... Nxa4 {[%clk 0:02:28.5]} 19. Qxa4 {[%clk 0:01:31.6]}
19... Rxb2 {[%clk 0:02:28.8]} 20. O-O {[%clk 0:01:30.1]} 20... Qb6 {[%clk
0:02:21.5]} 21. Be3 {[%clk 0:01:18.9]} 21... Rb1 {[%clk 0:02:16.3]} 22. Nd2
{[%clk 0:01:15.2]} 22... Rxf1+ {[%clk 0:02:14]} 23. Nxf1 {[%clk 0:01:14.2]}
23... Qb5 {[%clk 0:02:08.3]} 24. Qa1 {[%clk 0:01:09.1]} 24... Ba6 {[%clk
0:02:07.1]} 25. Nd2 {[%clk 0:01:09.3]} 25... f5 {[%clk 0:01:57.6]} 26. exf5
{[%clk 0:00:51.5]} 26... exf5 {[%clk 0:01:58.5]} 27. g3 {[%clk 0:00:51.5]} 27...
Qe2 {[%clk 0:01:47.8]} 28. Qa2+ {[%clk 0:00:44]} 28... Kh8 {[%clk 0:01:46.4]}
29. Qe6 {[%clk 0:00:37.6]} 29... f4 {[%clk 0:01:41.6]} 30. Qe7 {[%clk
0:00:31.3]} 30... Qd1+ {[%clk 0:01:36]} 31. Kg2 {[%clk 0:00:31.2]} 31... f3+
{[%clk 0:01:36.2]} 32. Kh3 {[%clk 0:00:31.3]} 32... Rg8 {[%clk 0:01:31.1]} 33.
Ne4 {[%clk 0:00:27.1]} 33... Bc8+ {[%clk 0:01:25.4]} 34. Kh4 {[%clk 0:00:27]}
34... Qh1 {[%clk 0:01:22.9]} 35. Kg5 {[%clk 0:00:15.6]} 35... Qxh2 {[%clk
0:01:19.9]} 36. Kf4 {[%clk 0:00:16.1]} 36... Qh5 {[%clk 0:01:09.8]} 37. Ng5
{[%clk 0:00:12]} 37... Qg4+ {[%clk 0:01:08.8]} 38. Ke5 {[%clk 0:00:12.4]} 38...
Qf5+ {[%clk 0:01:03.6]} 39. Kd6 {[%clk 0:00:13]} 39... Rf8 {[%clk 0:00:55.7]}
40. Ne4 {[%clk 0:00:09.3]} 40... Qd5+ {[%clk 0:00:52.7]} 41. Kc7 {[%clk
0:00:09.4]} 41... Rf7 {[%clk 0:00:53.3]} 0-1

[Event "Late-Titled-Tuesday-Blitz-September-12-2023"]
[Site "Chess.com"]
[Date "2023.09.12"]
[Round "8"]
[White "Der_Honigdachs"]
[Black "Lennis93"]
[Result "0-1"]
[WhiteElo "2531"]
[BlackElo "2710"]
[TimeControl "180+1"]
[EndTime "15:23:01 PDT"]
[Termination "Lennis93 won by resignation"]

1. c4 {[%clk 0:03:00]} 1... e5 {[%clk 0:02:59.5]} 2. Nc3 {[%clk 0:03:00.1]} 2...
Nf6 {[%clk 0:03:00.1]} 3. g3 {[%clk 0:02:59.7]} 3... c6 {[%clk 0:03:00.3]} 4. d4
{[%clk 0:02:58.7]} 4... exd4 {[%clk 0:03:01.2]} 5. Qxd4 {[%clk 0:02:59]} 5... d5
{[%clk 0:03:01.9]} 6. Bg2 {[%clk 0:02:58.1]} 6... Be6 {[%clk 0:02:52.9]} 7. Nh3
{[%clk 0:02:54.1]} 7... dxc4 {[%clk 0:02:45.1]} 8. Qxd8+ {[%clk 0:02:52.8]} 8...
Kxd8 {[%clk 0:02:46]} 9. Ng5 {[%clk 0:02:52.6]} 9... Nbd7 {[%clk 0:02:46.4]} 10.
O-O {[%clk 0:02:49.6]} 10... Nb6 {[%clk 0:02:41.1]} 11. Rd1+ {[%clk 0:02:45.5]}
11... Ke8 {[%clk 0:02:41]} 12. Nxe6 {[%clk 0:02:38.2]} 12... fxe6 {[%clk
0:02:41.9]} 13. e4 {[%clk 0:02:38.6]} 13... e5 {[%clk 0:02:36.5]} 14. Be3 {[%clk
0:02:36.8]} 14... Ng4 {[%clk 0:02:34.3]} 15. Bd2 {[%clk 0:02:03.8]} 15... Bc5
{[%clk 0:02:32.9]} 16. Be1 {[%clk 0:02:04.4]} 16... Rf8 {[%clk 0:02:31.1]} 17.
Rd2 {[%clk 0:02:04]} 17... Rd8 {[%clk 0:02:30.3]} 18. Rad1 {[%clk 0:02:02.3]}
18... Rxd2 {[%clk 0:02:10.8]} 19. Rxd2 {[%clk 0:02:03.2]} 19... Bd4 {[%clk
0:02:10.5]} 20. h3 {[%clk 0:01:58.4]} 20... Nf6 {[%clk 0:02:09.9]} 21. Ne2
{[%clk 0:01:43.9]} 21... c5 {[%clk 0:02:07.5]} 22. Rc2 {[%clk 0:01:39.2]} 22...
Kd7 {[%clk 0:02:01.8]} 23. Nc3 {[%clk 0:01:33.3]} 23... Kc6 {[%clk 0:02:01.1]}
24. Kf1 {[%clk 0:01:27.4]} 24... a6 {[%clk 0:02:01]} 25. Ke2 {[%clk 0:01:25.4]}
25... Nc8 {[%clk 0:01:58.7]} 26. Nd5 {[%clk 0:01:23.3]} 26... b5 {[%clk
0:01:58.7]} 27. f4 {[%clk 0:01:16.6]} 27... Nd6 {[%clk 0:01:52.6]} 28. Nxf6
{[%clk 0:00:55.9]} 28... gxf6 {[%clk 0:01:50.5]} 29. Bf3 {[%clk 0:00:51.6]}
29... Rg8 {[%clk 0:01:50.1]} 30. h4 {[%clk 0:00:48.3]} 30... b4 {[%clk
0:01:49.7]} 31. b3 {[%clk 0:00:44.2]} 31... c3 {[%clk 0:01:49.4]} 32. f5 {[%clk
0:00:42]} 32... a5 {[%clk 0:01:49.5]} 33. g4 {[%clk 0:00:39.8]} 33... c4 {[%clk
0:01:41]} 34. bxc4 {[%clk 0:00:39.4]} 34... Nxc4 {[%clk 0:01:40.7]} 35. Kd3
{[%clk 0:00:39.4]} 35... Nb2+ {[%clk 0:01:38.8]} 36. Ke2 {[%clk 0:00:38.3]}
36... a4 {[%clk 0:01:38.5]} 37. Rc1 {[%clk 0:00:35.5]} 37... Kc5 {[%clk
0:01:30.7]} 38. a3 {[%clk 0:00:28.8]} 38... Kc4 {[%clk 0:01:26.7]} 39. g5 {[%clk
0:00:21.9]} 39... fxg5 {[%clk 0:01:23.7]} 40. Bh5 {[%clk 0:00:22.8]} 40... Rf8
{[%clk 0:01:16.6]} 41. hxg5 {[%clk 0:00:19.3]} 41... Nd3 {[%clk 0:01:17.2]} 42.
Rd1 {[%clk 0:00:10.2]} 42... Nf4+ {[%clk 0:01:17]} 43. Kf3 {[%clk 0:00:09.9]}
43... Nxh5 {[%clk 0:01:17.9]} 44. axb4 {[%clk 0:00:10.4]} 44... a3 {[%clk
0:01:16.9]} 45. Kg4 {[%clk 0:00:09.8]} 45... Nf4 {[%clk 0:01:16.1]} 46. Bg3
{[%clk 0:00:09.8]} 46... Ne2 {[%clk 0:01:15.6]} 0-1

[Event "Late-Titled-Tuesday-Blitz-September-12-2023"]
[Site "Chess.com"]
[Date "2023.09.12"]
[Round "8"]
[White "andrzej"]
[Black "SCIM"]
[Result "1-0"]
[WhiteElo "2448"]
[BlackElo "2574"]
[TimeControl "180+1"]
[EndTime "15:23:01 PDT"]
[Termination "andrzej won by resignation"]

1. e4 {[%clk 0:03:00.9]} 1... e5 {[%clk 0:02:58.5]} 2. Nf3 {[%clk 0:02:59.4]}
2... Nc6 {[%clk 0:02:58.1]} 3. Bb5 {[%clk 0:02:59.4]} 3... a6 {[%clk 0:02:58.1]}
4. Ba4 {[%clk 0:02:59.1]} 4... Nf6 {[%clk 0:02:57.8]} 5. O-O {[%clk 0:02:59.7]}
5... Be7 {[%clk 0:02:58.3]} 6. Re1 {[%clk 0:02:59.6]} 6... b5 {[%clk 0:02:57.8]}
7. Bb3 {[%clk 0:03:00.2]} 7... O-O {[%clk 0:02:58]} 8. a4 {[%clk 0:03:00.2]}
8... b4 {[%clk 0:02:56.6]} 9. d4 {[%clk 0:03:00]} 9... d6 {[%clk 0:02:53.4]} 10.
dxe5 {[%clk 0:03:00.1]} 10... dxe5 {[%clk 0:02:46]} 11. Qxd8 {[%clk 0:02:46.3]}
11... Rxd8 {[%clk 0:02:36.6]} 12. Bg5 {[%clk 0:02:38.8]} 12... Bg4 {[%clk
0:02:27.7]} 13. Bxf6 {[%clk 0:02:35.9]} 13... Bxf6 {[%clk 0:02:26.2]} 14. Nbd2
{[%clk 0:02:35.5]} 14... Rd7 {[%clk 0:02:14.2]} 15. Bd5 {[%clk 0:02:29.1]} 15...
Bxf3 {[%clk 0:01:52.6]} 16. Bxc6 {[%clk 0:02:18.5]} 16... Rxd2 {[%clk
0:01:53.5]} 17. Bxa8 {[%clk 0:02:16.2]} 17... Be2 {[%clk 0:01:47]} 18. Bd5
{[%clk 0:01:45.6]} 18... Rxc2 {[%clk 0:01:39.1]} 19. Rac1 {[%clk 0:01:44.5]}
19... Bd3 {[%clk 0:01:34.8]} 20. Rxc2 {[%clk 0:01:36.8]} 20... Bxc2 {[%clk
0:01:34.6]} 21. a5 {[%clk 0:01:30.2]} 21... Bg5 {[%clk 0:01:25]} 22. h4 {[%clk
0:01:14.8]} 22... Bxh4 {[%clk 0:01:17.8]} 23. Rc1 {[%clk 0:01:12.6]} 23... b3
{[%clk 0:01:16]} 24. Ra1 {[%clk 0:01:01.4]} 24... c5 {[%clk 0:01:07.8]} 25. Bc4
{[%clk 0:00:56.4]} 25... Bxe4 {[%clk 0:00:49.5]} 26. Bxa6 {[%clk 0:00:56.4]}
26... Bd8 {[%clk 0:00:30.3]} 27. Bc4 {[%clk 0:00:54.4]} 27... Kf8 {[%clk
0:00:25.7]} 28. a6 {[%clk 0:00:54.5]} 28... Ba8 {[%clk 0:00:23.6]} 29. Rd1
{[%clk 0:00:48]} 29... Ke8 {[%clk 0:00:22.6]} 30. Bxf7+ {[%clk 0:00:46]} 30...
Ke7 {[%clk 0:00:20.1]} 31. Bxb3 {[%clk 0:00:46.4]} 31... Bb6 {[%clk 0:00:19.8]}
32. Bc4 {[%clk 0:00:46.4]} 32... e4 {[%clk 0:00:18.8]} 33. Kf1 {[%clk
0:00:45.7]} 33... h5 {[%clk 0:00:17.6]} 34. Ke2 {[%clk 0:00:45.8]} 34... g5
{[%clk 0:00:17.3]} 35. Ke3 {[%clk 0:00:46]} 35... h4 {[%clk 0:00:17]} 36. Bd5
{[%clk 0:00:42.4]} 36... c4+ {[%clk 0:00:15.5]} 37. Ke2 {[%clk 0:00:41.8]} 37...
Bxd5 {[%clk 0:00:13.2]} 38. Rxd5 {[%clk 0:00:42.7]} 38... g4 {[%clk 0:00:12.8]}
39. Re5+ {[%clk 0:00:40.4]} 39... Kd6 {[%clk 0:00:10.3]} 40. Rxe4 {[%clk
0:00:41.3]} 40... Kc5 {[%clk 0:00:10.4]} 41. Rxg4 {[%clk 0:00:40.5]} 1-0

[Event "Late-Titled-Tuesday-Blitz-September-12-2023"]
[Site "Chess.com"]
[Date "2023.09.12"]
[Round "8"]
[White "Jospem"]
[Black "tptagain"]
[Result "0-1"]
[WhiteElo "3084"]
[BlackElo "2955"]
[TimeControl "180+1"]
[EndTime "15:23:03 PDT"]
[Termination "tptagain won by resignation"]

1. e4 {[%clk 0:03:00.9]} 1... c6 {[%clk 0:03:00.1]} 2. d4 {[%clk 0:03:01.1]}
2... d5 {[%clk 0:03:00.7]} 3. e5 {[%clk 0:03:01.5]} 3... Bf5 {[%clk 0:03:00.5]}
4. h4 {[%clk 0:03:01.5]} 4... h6 {[%clk 0:02:56.4]} 5. Bd3 {[%clk 0:02:58.5]}
5... Bxd3 {[%clk 0:02:56.2]} 6. Qxd3 {[%clk 0:02:59.4]} 6... e6 {[%clk
0:02:55.7]} 7. Be3 {[%clk 0:02:59.4]} 7... Ne7 {[%clk 0:02:52.5]} 8. Nd2 {[%clk
0:02:59.8]} 8... Nf5 {[%clk 0:02:49.4]} 9. Ngf3 {[%clk 0:03:00.1]} 9... Be7
{[%clk 0:02:42.5]} 10. h5 {[%clk 0:03:00.2]} 10... O-O {[%clk 0:02:42.4]} 11. g4
{[%clk 0:02:59.8]} 11... Nxe3 {[%clk 0:02:42.6]} 12. fxe3 {[%clk 0:02:59.7]}
12... c5 {[%clk 0:02:42]} 13. c3 {[%clk 0:02:59.5]} 13... Nc6 {[%clk 0:02:39]}
14. O-O {[%clk 0:02:57.4]} 14... Qc7 {[%clk 0:02:28.6]} 15. Kg2 {[%clk
0:02:55.3]} 15... b5 {[%clk 0:02:26.1]} 16. a3 {[%clk 0:02:47]} 16... a5 {[%clk
0:02:16]} 17. Rac1 {[%clk 0:02:45.2]} 17... c4 {[%clk 0:02:15.8]} 18. Qc2 {[%clk
0:02:41.4]} 18... b4 {[%clk 0:02:16.1]} 19. a4 {[%clk 0:02:42.1]} 19... Rab8
{[%clk 0:02:14.2]} 20. Ra1 {[%clk 0:02:32.7]} 20... Rb6 {[%clk 0:02:09.5]} 21.
Rf2 {[%clk 0:02:26.5]} 21... Rfb8 {[%clk 0:02:04.9]} 22. Raf1 {[%clk 0:02:15.3]}
22... bxc3 {[%clk 0:02:04.5]} 23. bxc3 {[%clk 0:02:16.2]} 23... Rb2 {[%clk
0:02:03.9]} 24. Qc1 {[%clk 0:02:16.8]} 24... f6 {[%clk 0:01:57.3]} 25. exf6
{[%clk 0:01:46.3]} 25... Bxf6 {[%clk 0:01:58.2]} 26. g5 {[%clk 0:01:29.8]} 26...
hxg5 {[%clk 0:01:51.6]} 27. Nh2 {[%clk 0:01:30.1]} 27... Ne7 {[%clk 0:01:50]}
28. e4 {[%clk 0:01:30.5]} 28... dxe4 {[%clk 0:01:28.6]} 29. Nxe4 {[%clk
0:01:31.4]} 29... Rxf2+ {[%clk 0:01:28.7]} 30. Rxf2 {[%clk 0:01:32.3]} 30... Qc6
{[%clk 0:01:28.4]} 31. Qe1 {[%clk 0:01:27.3]} 31... Nd5 {[%clk 0:01:18.4]} 32.
Ng4 {[%clk 0:00:43.7]} 32... Nxc3 {[%clk 0:01:05.7]} 33. Re2 {[%clk 0:00:41.7]}
33... Nxe2 {[%clk 0:00:57.6]} 34. Qxe2 {[%clk 0:00:42.6]} 34... c3 {[%clk
0:00:56.4]} 35. Kh3 {[%clk 0:00:41.7]} 35... c2 {[%clk 0:00:45.9]} 36. Nexf6+
{[%clk 0:00:41.8]} 36... gxf6 {[%clk 0:00:45.6]} 37. Qd3 {[%clk 0:00:42.4]}
37... Rb3 {[%clk 0:00:22.8]} 38. Qxb3 {[%clk 0:00:41.9]} 38... c1=Q {[%clk
0:00:22.6]} 39. Qb8+ {[%clk 0:00:42.7]} 39... Qc8 {[%clk 0:00:21.6]} 40. Nxf6+
{[%clk 0:00:43.5]} 40... Kf7 {[%clk 0:00:20.2]} 41. Qe5 {[%clk 0:00:40.6]} 41...
Q8c3+ {[%clk 0:00:19.9]} 42. Kg4 {[%clk 0:00:40.6]} 42... Qg1+ {[%clk
0:00:17.9]} 0-1